Workbook

Sheet Introduction
A1: Introduction to the Northern Zone Birds & Mammals calculator tool
A3: This calculator tool has been developed as a supplement to the document "Pesticide risk assessment for birds and mammals".
A4: The aim of the document is to present standard scenarios for higher tier risk assessment in the Nordic Zone.
A5: The scenarios shall be used whenever the standard tier 1 scenarios (EFSA calculator tool) do not indicate safe use.
A7: All values for RUD, energy and moisture content, assimilation efficiency etc. used in the calculations are from Appendices F and G to the EFSA Guidance Document (EFSA Journal 2009: 7(12):1438).
A8: NB! Please notice that the spreadsheets "species" and "diets" are used as reference data sheets in the calculations and that NO CHANGES should be made to these sheets.
A10: Please follow the steps below when using the calculator tool. Further guidance is provided as comments (tip texts) to selected fields in the spreadsheets.
A12: Risk assessment for sprayed compounds:
A14: Step 0 | B14: Risk assessment for sprayed compounds is performed using the "Birds" and "Mammals" spreadsheets.
A16: Step 1 | B16: Please enter basic data on substance, use, toxicity etc.
A18: Step 2 | B18: Select a focal species that is appropriate for the crop, application scenario and growth stage in question, based upon the summary tables in chapter 6 and the relevant species accounts in chapter 5 of the document.
B19: When a species is selected in the spreadsheet, a species-specific body weight is shown and a corresponding Daily Energy Expenditure is calculated, based upon an allometric relationship
B20: between body weight and DEE. The standard values may be replaced by case-specific data if considered appropriate and duly justified.
A22: Step 3 | B22: Select a diet that is appropriate for the species, crop and time period in question. Please refer to the species accounts (paragraph "risk assessment") in chapter 5 of the document for further guidance on this subject.
B23: The proportion of diet made up by each food type shall be entered into the "PD" column. Please remember indicating (by selection) whether the entered diet is measured as fresh weight or dry weight
B24: (notice that volume % is considered equivalent to fresh weight %).
A26: Step 4 | B26: Enter the length of the TWA period (default is 21 days; longer periods are not accepted). MAF x twa is calculated automatically using a moving time window.
B27: MAF acute must be entered manually; use standard table for DT50 = 10 d in connection with application intervals of 7, 10 or 14 days and "MAF estimation" sheet for non-standard values.
B28: Replace the default deposition factor, dehusking factor, PT, DT50 and RUD values by case-specific values, if considered appropriate. See tip texts and chapter 4 of the document for further guidance.
B29: If different PT values are to be used for acute and reproductive risk assessment, the table must be copied (Step 5).
A31: Step 5 | B31: Copying the table allows you to make similar calculations for other diets, e.g. for other months. This is required whenever the product may be applied during an extended time period.
B32: Please notice that the calculations must cover the whole period and all growth stages where applications may be performed.
A34: Step 6 | B34: Copying the whole spreadsheet allows you to repeat the calculations for another species or another use of the product.
A36: Step 7 | B36: The "Create print table" facility opens a dialogue which allows you to summarize the results in a format suitable for printing or copying into a report.
B37: Please tick the columns you want to include in a summary table. The table opens in a new spreadsheet immediately before the current sheet.
A39: Risk assessment for seed treatments:
A41: Step 0 | B41: Risk assessment for seed treatment compounds is performed using the "Seed Treatment" spreadsheet.
A43: Step 1 | B43: Please enter basic data on substance, use and toxicity.
A45: Step 2 | B45: Select a relevant granivorous focal species from the summary tables in chapter 6 and the species accounts in chapter 5 of the document (please notice that wood mouse is the only relevant mammal species to consider).
B46: When a species is selected in the spreadsheet, a species-specific body weight is shown. Please notice that the calculation of daily intake (next step) refers to a specific body weight;
B47: therefore the default body weight should NOT be changed without adjusting the daily intake accordingly.
A49: Step 3 | B49: Enter the daily intake of treated seed for the species in question, based upon the species-specific information (paragraphs "risk assessment") in chapter 5 of the document.
A51: Step 4 | B51: If deemed appropriate (and duly justified) the default dehusking factor and PT value (1) may be replaced by case-specific values.
A53: Step 5 | B53: Enter a compound-specific DT50 value (if available) for estimation of a TWA factor. The length of the TWA period (default 21 days) may be shortened if considered appropriate.
A55: Step 6 | B55: Copying the whole "Seed Treatment" spreadsheet allows you to repeat the calculations for another species or another use of the product.
A57: Risk assessment for seed treatments (systemic compounds) distributed to green parts of plant:
A59: Step 0 | B59: Risk assessment is performed in the same way as for sprayed compounds (i.e., using the "Birds" and "Mammals" spreadsheets) with the following modifications:
A61: Step 1 | B61: Application rate shall be set to zero and the number of applications to 1.
A63: Step 4 | B63: Depending on the intended use of the product, exposure may occur as "cereal shoots" or "leafy crops". The estimated concentration of a.s. (mg/kg) in the food type in question
B64: (estimated as seed treatment rate / 5 or as measured concentrations) shall be entered directly into the corresponding "C acute" field (to the right of the main table).
B65: "C repro" shall be calculated as C acute x MAFtwa.
B66: Deposition factor and MAF acute shall be set to 1. Default values for PT (1), DT50 (10 days) and length of TWA period (21 days) may be replaced if considered appropriate.

Sheet Editing log
A1: Date | B1: Issue | C1: File name
A2: 2015-01-15 | B2: A calculation error was corrected, that appeared when the ‘copy table’ button was used | C2: Bird mammal scenario template v10-2.xlsm
A3: 2016-01-07 | B3: MAFm calculator and editing log included on separate sheets | C3: Bird mammal scenario template v10-3.xlsm
A4: 2016-04-26 | B4: Included PD for skylark and wood mouse as individual 'look up' sheets (from Appendix 2 & 4 of GD). Changes have no implications on TER calculations. | C4: Bird mammal scenario template v10-4.xlsm
A5: 2017-04-17 | B5: A bug affecting the copying of MAF90 values was fixed. 'MAF estimation' sheet amended to include estimation of MAF90. Editorial corrections to tip texts etc. | C5: Bird mammal scenario template v10-5.xlsm

Sheet Birds
A1: Birds | B1: Standard higher tier risk assessment for birds
B3: Responsible | C3: NN | D3: Date | E3: dd-mm-yyyy | G3: RED fields in bold shall always be filled in manually
G4: Other RED fields are also to be filled in manually but may be left at their default values
B5: Active substance | C5: substance | G5: GREEN fields are filled in automatically but may be replaced
B6: Plant protection product | C6: product | G6: BLUE fields are filled in automatically and should NOT be replaced
B7: Use | C7: crop (group)
B8: Application rate | C8: 0.1 | D8: kg a.s./ha | G8: MAF acute - to be used in connection with 90th percentiles for RUD
B9: No. of applications | C9: 1 | F9: Interval | G9: No. of applications
B10: Interval between applications | C10: 1 | D10: days | F10: (d) | G10: 1 | H10: 2 | I10: 3 | J10: 4 | K10: 5 | L10: 6 | M10: 7 | N10: 8 | O10: > 8
F11: 7 | G11: 1 | H11: 1.4 | I11: 1.6 | J11: 1.8 | K11: 1.9 | L11: 1.9 | M11: 1.9 | N11: 1.9 | O11: 2
B12: Endpoints birds: | F12: 10 | G12: 1 | H12: 1.3 | I12: 1.5 | J12: 1.5 | K12: 1.6 | L12: 1.6 | M12: 1.6 | N12: 1.6 | O12: 1.6
B13: LD50 acute | C13: 340 | D13: mg/kg bw | F13: 14 | G13: 1 | H13: 1.2 | I13: 1.3 | J13: 1.3 | K13: 1.4 | L13: 1.4 | M13: 1.4 | N13: 1.4 | O13: 1.4
B14: NOAEL reproductive | C14: 75.7 | D14: mg/kg bw/d
O15: Please copy the table for further months or periods
B17: Species (please select): | D17: 5 | E17: Body weight | F17: =OFFSET(species!$D$2,D17,0) -> 35 | G17: g | H17: DEE (kJ) | I17: =CalcDEE(D17,F17) -> 
B19: Diet compos. measured as | D19: 2 | H19: Length of TWA period | I19: 21 | J19: days
A21: 0 | B21: Month or period:
B22: May
A24: 1 | B24: Diet composition: | D24: PD | E24: FIR | F24: Dehusk. | G24: Depos. | H24: PT | I24: DT50 | J24: MAF | K24: MAFtwa | L24: RUD | M24: RUD | N24: DDD | O24: DDD | Q24: FE assimilated | R24: C acute | S24: C repro
A25: 2 | D25: ww or dw | E25: g ww | F25: factor | G25: factor | I25: days | J25: acute | L25: 90 perc. | M25: mean | N25: acute | O25: repro | Q25: kJ/g diet mix
A26: 3 | B26: Grasses and cereal shoots | E26: =CalcFIR($D$19,$I$17,Q38,ROW(D26)) ->  | F26: -- | G26: 1 | H26: 1 | I26: 10 | J26: 1 | K26: =calctwa($C$9, $I$19,$I26,$C$10,1) ->  | L26: 102.3 | M26: 54.2 | N26: =$E26/$F$17*R26*$H26 ->  | O26: =$E26/$F$17*S26*$H26 ->  | Q26: =CalcFE($D$17,D$19,ROW(D26)) ->  | R26: =calcc($C$8,ROW(F26:M26),TRUE) ->  | S26: =calcc($C$8,ROW(F26:M26),FALSE) -> 
A27: 4 | B27: Non-grass herbs, leafy crops | E27: =CalcFIR($D$19,$I$17,Q38,ROW(D27)) ->  | F27: -- | G27: 1 | H27: =H26 -> 1 | I27: 10 | J27: =J26 -> 1 | K27: =calctwa($C$9, $I$19,$I27,$C$10,1) ->  | L27: 70.3 | M27: 28.7 | R27: =calcc($C$8,ROW(F27:M27),TRUE) -> 
A28: 5 | B28: Cereal grain/ear on plant | E28: =CalcFIR($D$19,$I$17,Q38,ROW(D28)) ->  | F28: 1 | G28: 1 | H28: =H26 -> 1 | I28: 10 | J28: =J26 -> 1 | K28: =calctwa($C$9, $I$19,$I28,$C$10,1) ->  | L28: 13 | M28: 8
A29: 6 | B29: Large seeds/cereal grain on ground | D29: 0.06 | E29: =CalcFIR($D$19,$I$17,Q38,ROW(D29)) ->  | F29: 1 | G29: 1 | H29: =H26 -> 1 | I29: 10 | J29: =J26 -> 1 | L29: 87 | M29: 40.2 | N29: =$E29/$F$17*R29*$H29 ->  | O29: =$E29/$F$17*S29*$H29 -> 
A30: 7 | B30: Small seeds (weed seeds) | D30: 0.42 | E30: =CalcFIR($D$19,$I$17,Q38,ROW(D30)) ->  | F30: 1 | G30: 1 | H30: =H26 -> 1 | I30: 10 | J30: =J26 -> 1 | L30: 87 | M30: 40.2
A31: 8 | B31: Large fruit (pome) | E31: =CalcFIR($D$19,$I$17,Q38,ROW(D31)) ->  | F31: -- | G31: 1 | H31: =H26 -> 1 | I31: 10 | J31: =J26 -> 1 | L31: 41.1 | M31: 19.5
A32: 9 | B32: Small fruit (plum, cherry) | E32: =CalcFIR($D$19,$I$17,Q38,ROW(D32)) ->  | F32: -- | G32: 1 | H32: =H26 -> 1 | I32: 10 | J32: =J26 -> 1 | L32: 6.5 | M32: 3.3
A33: 10 | B33: Berries | E33: =CalcFIR($D$19,$I$17,Q38,ROW(D33)) ->  | F33: -- | G33: 1 | H33: =H26 -> 1 | I33: 10 | J33: =J26 -> 1 | L33: 16.7 | M33: 8.3
A34: 11 | B34: Foliar arthropods | E34: =CalcFIR($D$19,$I$17,Q38,ROW(D34)) ->  | F34: -- | G34: 1 | H34: =H26 -> 1 | I34: 10 | J34: =J26 -> 1 | L34: 54.1 | M34: 21
A35: 12 | B35: Ground-dwelling arthropods | D35: 0.52 | E35: =CalcFIR($D$19,$I$17,Q38,ROW(D35)) ->  | F35: -- | G35: 1 | H35: =H26 -> 1 | I35: 10 | J35: =J26 -> 1 | L35: 13.8 | M35: 7.5
A36: 13 | B36: Ground-dwelling arthropods with intercept. | E36: =CalcFIR($D$19,$I$17,Q38,ROW(D36)) ->  | F36: -- | G36: 1 | H36: =H26 -> 1 | I36: 10 | J36: =J26 -> 1 | L36: 9.7 | M36: 3.5
A37: 14 | B37: Soil invertebrates | E37: =CalcFIR($D$19,$I$17,Q38,ROW(D37)) ->  | F37: -- | G37: 1 | H37: =H26 -> 1 | I37: 10 | J37: =J26 -> 1 | K37: =calctwa($C$9, $I$19,$I37,$C$10,1) ->  | L37: 0 | M37: 0 | N37: =$E37/$F$17*R37*$H37 ->  | O37: =$E37/$F$17*S37*$H37 -> 
B38: Total | D38: =SUM(D26:D37) -> 1 | E38: =SUM(E26:E37) ->  | N38: =SUM(N26:N37) ->  | O38: =SUM(O26:O37) ->  | Q38: =SUM(Q26:Q37) -> 
D39: check = 1,00
M40: TER | N40: =$C$13/ N38 ->  | O40: =$C$14/ O38 -> 
M41: Trigger | N41: 10 | O41: 5

Sheet Mammals
A1: Mammals | B1: Standard higher tier risk assessment for mammals
B3: Responsible | C3: NN | D3: Date | E3: dd-mm-yyyy | G3: RED fields in bold shall always be filled in manually
G4: Other RED fields are also to be filled in manually but may be left at their default values
B5: Active substance | C5: substance | G5: GREEN fields are filled in automatically but may be replaced
B6: Plant protection product | C6: product | G6: BLUE fields are filled in automatically and should NOT be replaced
B7: Use | C7: crop (group)
B8: Application rate | C8: 0.1 | D8: kg a.s./ha | G8: MAF acute - to be used in connection with 90th percentiles for RUD
B9: No. of applications | C9: 1 | F9: Interval | G9: No. of applications
B10: Interval between applications | C10: 1 | D10: days | F10: (d) | G10: 1 | H10: 2 | I10: 3 | J10: 4 | K10: 5 | L10: 6 | M10: 7 | N10: 8 | O10: > 8
F11: 7 | G11: 1 | H11: 1.4 | I11: 1.6 | J11: 1.8 | K11: 1.9 | L11: 1.9 | M11: 1.9 | N11: 1.9 | O11: 2
B12: Endpoints mammals: | F12: 10 | G12: 1 | H12: 1.3 | I12: 1.5 | J12: 1.5 | K12: 1.6 | L12: 1.6 | M12: 1.6 | N12: 1.6 | O12: 1.6
B13: LD50 acute | C13: 179 | D13: mg/kg bw | F13: 14 | G13: 1 | H13: 1.2 | I13: 1.3 | J13: 1.3 | K13: 1.4 | L13: 1.4 | M13: 1.4 | N13: 1.4 | O13: 1.4
B14: NOAEL reproductive | C14: 3.8 | D14: mg/kg bw/d
O15: Please copy the table for further months or periods
B17: Species (please select): | C17: 4 | D17: =C17+16 -> 20 | E17: Body weight | F17: =OFFSET(species!$D$2,D17,0) -> 18 | G17: g | H17: DEE (kJ) | I17: =CalcDEE(D17,F17) -> 
B19: Diet compos. measured as | D19: 1 | H19: Length of TWA period | I19: 21 | J19: days
A21: 0 | B21: Month or period:
B22: May
A24: 1 | B24: Diet composition: | D24: PD | E24: FIR | F24: Dehusk. | G24: Depos. | H24: PT | I24: DT50 | J24: MAF | K24: MAFtwa | L24: RUD | M24: RUD | N24: DDD | O24: DDD | Q24: FE assimilated | R24: C acute | S24: C repro
A25: 2 | D25: ww or dw | E25: g ww | F25: factor | G25: factor | I25: days | J25: acute | L25: 90 perc. | M25: mean | N25: acute | O25: repro | Q25: kJ/g diet mix
A26: 3 | B26: Grasses and cereal shoots | D26: 0.16 | E26: =CalcFIR($D$19,$I$17,Q38,ROW(D26)) ->  | F26: -- | G26: 1 | H26: 1 | I26: 10 | J26: 1 | K26: =calctwa($C$9, $I$19,$I26,$C$10,1) ->  | L26: 102.3 | M26: 54.2 | N26: =$E26/$F$17*R26*$H26 ->  | O26: =$E26/$F$17*S26*$H26 ->  | Q26: =CalcFE($D$17,D$19,ROW(D26)) ->  | R26: =calcc($C$8,ROW(F26:M26),TRUE) ->  | S26: =calcc($C$8,ROW(F26:M26),FALSE) -> 
A27: 4 | B27: Non-grass herbs, leafy crops | E27: =CalcFIR($D$19,$I$17,Q38,ROW(D27)) ->  | F27: -- | G27: 1 | H27: =H26 -> 1 | I27: 10 | J27: =J26 -> 1 | K27: =calctwa($C$9, $I$19,$I27,$C$10,1) ->  | L27: 70.3 | M27: 28.7 | N27: =$E27/$F$17*R27*$H27 ->  | O27: =$E27/$F$17*S27*$H27 ->  | Q27: =CalcFE($D$17,D$19,ROW(D27)) ->  | R27: =calcc($C$8,ROW(F27:M27),TRUE) ->  | S27: =calcc($C$8,ROW(F27:M27),FALSE) -> 
A28: 5 | B28: Cereal grain/ear on plant | E28: =CalcFIR($D$19,$I$17,Q38,ROW(D28)) ->  | F28: 1 | G28: 1 | H28: =H26 -> 1 | I28: 10 | J28: =J26 -> 1 | K28: =calctwa($C$9, $I$19,$I28,$C$10,1) ->  | L28: 13 | M28: 8 | N28: =$E28/$F$17*R28*$H28 ->  | O28: =$E28/$F$17*S28*$H28 ->  | R28: =calcc($C$8,ROW(F28:M28),TRUE) ->  | S28: =calcc($C$8,ROW(F28:M28),FALSE) -> 
A29: 6 | B29: Large seeds/cereal grain on ground | D29: 0.3 | E29: =CalcFIR($D$19,$I$17,Q38,ROW(D29)) ->  | F29: 1 | G29: 1 | H29: =H26 -> 1 | I29: 10 | J29: =J26 -> 1 | L29: 87 | M29: 40.2 | N29: =$E29/$F$17*R29*$H29 ->  | O29: =$E29/$F$17*S29*$H29 ->  | Q29: =CalcFE($D$17,D$19,ROW(D29)) ->  | R29: =calcc($C$8,ROW(F29:M29),TRUE) ->  | S29: =calcc($C$8,ROW(F29:M29),FALSE) -> 
A30: 7 | B30: Small seeds (weed seeds) | D30: 0.04 | E30: =CalcFIR($D$19,$I$17,Q38,ROW(D30)) ->  | F30: 1 | G30: 1 | H30: =H26 -> 1 | I30: 10 | J30: =J26 -> 1 | L30: 87 | M30: 40.2 | N30: =$E30/$F$17*R30*$H30 ->  | R30: =calcc($C$8,ROW(F30:M30),TRUE) ->  | S30: =calcc($C$8,ROW(F30:M30),FALSE) -> 
A31: 8 | B31: Large fruit (pome) | E31: =CalcFIR($D$19,$I$17,Q38,ROW(D31)) ->  | F31: -- | G31: 1 | H31: =H26 -> 1 | I31: 10 | J31: =J26 -> 1 | L31: 41.1 | M31: 19.5
A32: 9 | B32: Small fruit (plum, cherry) | E32: =CalcFIR($D$19,$I$17,Q38,ROW(D32)) ->  | F32: -- | G32: 1 | H32: =H26 -> 1 | I32: 10 | J32: =J26 -> 1 | L32: 6.5 | M32: 3.3 | O32: =$E32/$F$17*S32*$H32 -> 
A33: 10 | B33: Berries | E33: =CalcFIR($D$19,$I$17,Q38,ROW(D33)) ->  | F33: -- | G33: 1 | H33: =H26 -> 1 | I33: 10 | J33: =J26 -> 1 | L33: 16.7 | M33: 8.3
A34: 11 | B34: Foliar arthropods | E34: =CalcFIR($D$19,$I$17,Q38,ROW(D34)) ->  | F34: -- | G34: 1 | H34: =H26 -> 1 | I34: 10 | J34: =J26 -> 1 | K34: =calctwa($C$9, $I$19,$I34,$C$10,1) ->  | L34: 54.1 | M34: 21
A35: 12 | B35: Ground-dwelling arthropods | D35: 0.1 | E35: =CalcFIR($D$19,$I$17,Q38,ROW(D35)) ->  | F35: -- | G35: 1 | H35: =H26 -> 1 | I35: 10 | J35: =J26 -> 1 | L35: 13.8 | M35: 7.5
A36: 13 | B36: Ground-dwelling arthropods with intercept. | E36: =CalcFIR($D$19,$I$17,Q38,ROW(D36)) ->  | F36: -- | G36: 1 | H36: =H26 -> 1 | I36: 10 | J36: =J26 -> 1 | K36: =calctwa($C$9, $I$19,$I36,$C$10,1) ->  | L36: 9.7 | M36: 3.5
A37: 14 | B37: Soil invertebrates | D37: 0.4 | E37: =CalcFIR($D$19,$I$17,Q38,ROW(D37)) ->  | F37: -- | G37: 1 | H37: =H26 -> 1 | I37: 10 | J37: =J26 -> 1 | K37: =calctwa($C$9, $I$19,$I37,$C$10,1) ->  | L37: 0 | M37: 0 | R37: =calcc($C$8,ROW(F37:M37),TRUE) ->  | S37: =calcc($C$8,ROW(F37:M37),FALSE) -> 
B38: Total | D38: =SUM(D26:D37) -> 1 | E38: =SUM(E26:E37) ->  | N38: =SUM(N26:N37) ->  | O38: =SUM(O26:O37) ->  | Q38: =SUM(Q26:Q37) -> 
D39: check = 1,00
M40: TER | N40: =$C$13/ N38 ->  | O40: =$C$14/ O38 -> 
M41: Trigger | N41: 10 | O41: 5

Sheet Seed Treatment
A1: Standard higher tier risk assessment for seed treatments
A3: Responsible | B3: NN | C3: Date | D3: dd-mm-yyyy | G3: RED fields in bold shall always be filled in manually
G4: Other RED fields are also to be filled in manually but may be left at their default values
A5: Active substance | B5: substance | G5: GREEN fields are filled in automatically but may be replaced
A6: Plant protection product | B6: product | G6: BLUE fields are filled in automatically and should NOT be replaced
A7: Use | B7: crop (group)
A8: Seed tmt. (mg a.s./kg seed) | B8: 10
A11: Endpoints birds:
A12: LD50 acute | B12: 340 | C12: mg/kg bw
A13: NOAEL reproductive | B13: 75.7 | C13: mg/kg bw/d
A15: Species (please select): | B15: 4 | C15: 2 | D15: Body weight (g) | E15: =OFFSET(species!$D$2,C15,0) -> 2450 | H15: Length of TWA period | I15: 21 | J15: days
B17: Daily intake | C17: Dehusk. | D17: PT | E17: DT50 | F17: Ftwa | G17: DDD | H17: DDD | I17: TER | J17: TER
B18: (g) | C18: factor | E18: days | G18: acute | H18: repro | I18: acute | J18: repro
A20: Granivorous bird | B20: 225 | C20: 1 | D20: 1 | E20: 9999 | F20: =(1-EXP(-((LN(2)/E20)*$I$15)))/((LN(2)/E20)*$I$15) -> 0.9992724757 | G20: =C20*D20*(B20*$B$8/$E$15) -> 0.9183673469 | H20: =G20*F20 -> 0.9176992124 | I20: =B12/G20 -> 370.2222222 | J20: =B13/H20 -> 82.48890157
A24: Endpoints mammals:
A25: LD50 acute | B25: 179 | C25: mg/kg bw
A26: NOAEL reproductive | B26: 3.8 | C26: mg/kg bw/d
A28: Species | B28: Wood mouse | D28: Body weight (g) | E28: 18 | H28: Length of TWA period | I28: 21 | J28: days
B30: Daily intake | C30: Dehusk. | D30: PT | E30: DT50 | F30: Ftwa | G30: DDD | H30: DDD | I30: TER | J30: TER
B31: (g) | C31: factor | E31: days | G31: acute | H31: repro | I31: acute | J31: repro
A33: Granivorous mammal | B33: 3.9 | C33: 1 | D33: 1 | E33: 9999 | F33: =(1-EXP(-((LN(2)/E33)*$I$28)))/((LN(2)/E33)*$I$28) -> 0.9992724757 | G33: =C33*D33*(B33*$B$8/$E$28) -> 2.166666667 | H33: =G33*F33 -> 2.165090364 | I33: =B25/G33 -> 82.61538462 | J33: =B26/H33 -> 1.755123048

Sheet species
A1: AE_gruppe | B1: English name | C1: Dansk navn | D1: BW (g) | E1: log a | F1: b
A3: 3 | B3: Bean goose | C3: Sædgås | D3: 2845 | E3: 0.839 | F3: 0.669
A4: 3 | B4: Pink-footed goose | C4: Kortnæbbet gås | D4: 2450 | E4: 0.839 | F4: 0.669
A5: 5 | B5: Grey partridge | C5: Agerhøne | D5: 380 | E5: 0.839 | F5: 0.669
A6: 4 | B6: Woodpigeon | C6: Ringdue | D6: 435 | E6: 0.839 | F6: 0.669
A7: 2 | B7: Skylark | C7: Sanglærke | D7: 35 | E7: 1.032 | F7: 0.676
A8: 2 | B8: Yellow wagtail | C8: Gul vipstjert | D8: 17.5 | E8: 1.032 | F8: 0.676
A9: 2 | B9: White wagtail | C9: Hvid vipstjert | D9: 21 | E9: 1.032 | F9: 0.676
A10: 2 | B10: Robin | C10: Rødhals | D10: 16.5 | E10: 1.032 | F10: 0.676
A11: 2 | B11: Whinchat | C11: Bynkefugl | D11: 16.5 | E11: 1.032 | F11: 0.676
A12: 2 | B12: Whitethroat | C12: Tornsanger | D12: 15.5 | E12: 1.032 | F12: 0.676
A13: 2 | B13: Willow warbler | C13: Løvsanger | D13: 9.5 | E13: 1.032 | F13: 0.676
A14: 2 | B14: Blue tit | C14: Blåmejse | D14: 11 | E14: 1.032 | F14: 0.676
A15: 2 | B15: Starling | C15: Stær | D15: 75 | E15: 1.032 | F15: 0.676
A16: 2 | B16: Chaffinch | C16: Bogfinke | D16: 21 | E16: 1.032 | F16: 0.676
A17: 2 | B17: Linnet | C17: Tornirisk | D17: 18 | E17: 1.032 | F17: 0.676
A18: 2 | B18: Yellowhammer | C18: Gulspurv | D18: 29 | E18: 1.032 | F18: 0.676
A19: 1 | B19: Common shrew | C19: Almindelig spidsmus | D19: 8.1 | E19: 0.814 | F19: 0.715
A20: 1 | B20: Brown hare | C20: Hare | D20: 3800 | E20: 0.814 | F20: 0.715
A21: 1 | B21: Field vole | C21: Almindelig markmus | D21: 30 | E21: 0.814 | F21: 0.715
A22: 1 | B22: Wood mouse | C22: Skovmus | D22: 18 | E22: 0.814 | F22: 0.715
A26: Please do not make any changes to this sheet

Sheet diets
A1: English name | B1: Dansk navn | C1: Mammal | D1: Passerine | E1: Duck & Geese | F1: Pigeon | G1: Fowl | H1: FE | I1: MC%
B2: index | C2: 1 | D2: 2 | E2: 3 | F2: 4 | G2: 5
A3: Grasses and cereal shoots | B3: Græs og korn | C3: 0.47 | D3: 0.76 | E3: 0.41 | F3: 0.53 | G3: 0.42 | H3: 17.6 | I3: 76.4
A4: Non-grass herbs, leafy crops | B4: Bredbladet ukrudt og afgrøde | C4: 0.76 | D4: 0.76 | E4: 0.41 | F4: 0.53 | G4: 0.42 | H4: 17.8 | I4: 88.1
A5: Cereal grain/ear on plant | B5: Korn/aks på planten | C5: 0.84 | D5: 0.8 | E5: 0.83 | F5: 0.76 | G5: 0.65 | H5: 18.4 | I5: 14.7
A6: Large seeds/cereal grain on ground | B6: Store frø (korn) på jorden | C6: 0.84 | D6: 0.8 | E6: 0.83 | F6: 0.76 | G6: 0.65 | H6: 18.4 | I6: 14.7
A7: Small seeds (weed seeds) | B7: Små frø | C7: 0.84 | D7: 0.8 | E7: 0.83 | F7: 0.76 | G7: 0.65 | H7: 21.7 | I7: 9.9
A8: Large fruit (pome) | B8: Store frugter (æble, pære) | C8: 0.74 | D8: 0.67 | E8: 0.62 | F8: 0.62 | G8: 0.57 | H8: 14.8 | I8: 83.9
A9: Small fruit (plum, cherry) | B9: Små frugter (blommer, kirsebær) | C9: 0.74 | D9: 0.67 | E9: 0.62 | F9: 0.62 | G9: 0.57 | H9: 14.8 | I9: 83.9
A10: Berries | B10: Bær | C10: 0.74 | D10: 0.67 | E10: 0.62 | F10: 0.62 | G10: 0.57 | H10: 14.8 | I10: 83.9
A11: Foliar arthropods | B11: Bladlevende arthropoder | C11: 0.87 | D11: 0.76 | E11: 0.87 | F11: 0.77 | G11: 0.7 | H11: 22.7 | I11: 68.8
A12: Ground-dwelling arthropods | B12: Jordoverflade-levende arthropoder | C12: 0.87 | D12: 0.76 | E12: 0.87 | F12: 0.77 | G12: 0.7 | H12: 22.7 | I12: 68.8
A13: Ground-dwelling arthropods with interception | B13: Do., interception indregnet i RUD | C13: 0.87 | D13: 0.76 | E13: 0.87 | F13: 0.77 | G13: 0.7 | H13: 22.7 | I13: 68.8
A14: Soil invertebrates | B14: Regnorme | C14: 0.87 | D14: 0.76 | E14: 0.87 | F14: 0.77 | G14: 0.7 | H14: 19.4 | I14: 84.3
A18: Fresh (wet) weight | B18: Vådvægt
A19: Dry weight | B19: Tørvægt
A22: Standard (21 days)
A23: Application interval
A26: Please do not make any changes to this sheet

Sheet MAF estimation
A1: Estimation of MAFm and MAF90
A3: Half life | B3: DT50 | C3: 10 | D3: d | E3: Insert values in red fields
A4: Number of applications | B4: n | C4: 3
A5: Application interval | B5: i | C5: 7 | D5: d
A7: k | B7: =(LN(2)/C$3) -> 0.06931471806
A8: MAFm | B8: =((1-EXP(-C$4*B$7*C$5))/(1-EXP(-B$7*C$5))) -> 1.994501348
A10: MAFvar | B10: =((1-EXP(-2*C$4*B$7*C$5))/(1-EXP(-2*B$7*C$5))) -> 1.522516436
A11: MAF90 | B11: =(B8*50.5+1.28*SQRT(B10*1206.9))/95 -> 1.637802767

Sheet PD Skylark
A1: Skylark PD - dry weight
A3: Spring cereals | B3: April | C3: May | D3: June | E3: June | F3: July | G3: July | H3: August | I3: August | J3: August | K3: Sept.
A4: BBCH | B4: 0-9 | C4: 10-29 | D4: 30-39 | E4: 40-69 | F4: 40-69 | G4: 70-89 | H4: 70-89 | I4: Pre-harv. | J4: Stubble | K4: Stubble
I5: desiccat. | J5: treatm. | K5: treatm.
A6: Grasses and cereal shoots | C6: 0.38 | D6: 0.17 | E6: 0.17 | F6: 0.13 | G6: 0.1 | H6: 0.01 | I6: 0.01 | J6: 0.01 | K6: 0.01
A7: Non-grass herbs, leafy crops | D7: 0.14 | E7: 0.14 | F7: 0.06 | G7: 0.05 | H7: 0.05 | I7: 0.02 | J7: 0.02 | K7: 0.01
A8: Cereal grain/ear on plant | G8: 0.18 | H8: 0.37 | I8: 0.39
A9: Large seeds/cereal grain on ground | B9: 0.46 | C9: 0.11 | D9: 0.06 | E9: 0.06 | F9: 0.06 | G9: 0.09 | H9: 0.19 | I9: 0.19 | J9: 0.58 | K9: 0.72
A10: Small seeds (weed seeds) | B10: 0.33 | C10: 0.23 | D10: 0.23 | E10: 0.23 | F10: 0.09 | G10: 0.07 | H10: 0.14 | I10: 0.14 | J10: 0.14 | K10: 0.13
A11: Large fruit (pome)
A12: Small fruit (plum, cherry)
A13: Berries
A14: Foliar arthropods | D14: 0.1 | E14: 0.2 | F14: 0.33 | G14: 0.25 | H14: 0.12 | I14: 0.06
A15: Ground-dwelling arthropods | B15: 0.21 | C15: 0.28 | D15: 0.3 | J15: 0.25 | K15: 0.13
A16: Ground-dwelling arthropods with intercept. | E16: 0.2 | F16: 0.33 | G16: 0.26 | H16: 0.12 | I16: 0.19
A17: Soil invertebrates
A18: Sum | B18: =SUM(B6:B17) -> 1 | C18: =SUM(C6:C17) -> 1 | D18: 1 | E18: 1 | F18: 1 | G18: 1 | H18: 1 | I18: 1 | J18: 1 | K18: 1
A21: Winter cereals | B21: Sept. | C21: Sept. | D21: April | E21: May | F21: May | G21: June | H21: May | I21: June | J21: July | K21: July | L21: August | M21: July | N21: August | O21: August | P21: Sept.
A22: BBCH | B22: 0-9 | C22: 10-19 | D22: 10-29 | E22: 10-29 | F22: 30-39 | G22: 30-39 | H22: 40-59 | I22: 40-69 | J22: 60-69 | K22: 70-89 | L22: 70-89 | M22: Pre-harv. | N22: Pre-harv. | O22: Stubble | P22: Stubble
M23: desiccat. | N23: desiccat. | O23: treatm. | P23: treatm.
A24: Grasses and cereal shoots | C24: 0.03 | D24: 0.46 | E24: 0.4 | F24: 0.25 | G24: 0.17 | H24: 0.25 | I24: 0.17 | J24: 0.13 | K24: 0.1 | L24: 0.01 | M24: 0.05 | O24: 0.01 | P24: 0.01
A25: Non-grass herbs, leafy crops | F25: 0.15 | G25: 0.14 | H25: 0.15 | I25: 0.14 | J25: 0.06 | K25: 0.05 | L25: 0.05 | M25: 0.03 | N25: 0.03 | O25: 0.02 | P25: 0.01
A26: Cereal grain/ear on plant | K26: 0.18 | L26: 0.37 | M26: 0.19 | N26: 0.39
A27: Large seeds/cereal grain on ground | B27: 0.74 | C27: 0.71 | D27: 0.06 | E27: 0.06 | F27: 0.06 | G27: 0.06 | H27: 0.06 | I27: 0.06 | J27: 0.06 | K27: 0.09 | L27: 0.19 | M27: 0.1 | N27: 0.19 | O27: 0.58 | P27: 0.72
A28: Small seeds (weed seeds) | B28: 0.13 | C28: 0.13 | D28: 0.29 | E28: 0.24 | F28: 0.24 | G28: 0.23 | H28: 0.24 | I28: 0.23 | J28: 0.09 | K28: 0.07 | L28: 0.14 | M28: 0.08 | N28: 0.14 | O28: 0.14 | P28: 0.13
A29: Large fruit (pome)
A30: Small fruit (plum, cherry)
A31: Berries
A32: Foliar arthropods | F32: 0.08 | G32: 0.1 | H32: 0.15 | I32: 0.2 | J32: 0.33 | K32: 0.25 | L32: 0.12 | M32: 0.14 | N32: 0.06
A33: Ground-dwelling arthropods | B33: 0.13 | C33: 0.13 | D33: 0.19 | E33: 0.3 | F33: 0.22 | G33: 0.3 | O33: 0.25 | P33: 0.13
A34: Ground-dwelling arthropods with intercept. | H34: 0.15 | I34: 0.2 | J34: 0.33 | K34: 0.26 | L34: 0.12 | M34: 0.41 | N34: 0.19
A35: Soil invertebrates
A36: Sum | B36: =SUM(B24:B35) -> 1 | C36: 1 | D36: 1 | E36: 1 | F36: 1 | G36: 1 | H36: 1 | I36: 1 | J36: 1 | K36: 1 | L36: 1 | M36: 1 | N36: 1 | O36: 1 | P36: 1
A39: Maize | B39: April | C39: May | D39: May | E39: June | F39: June | G39: July
A40: BBCH | B40: 0-9 | C40: 0-9 | D40: 10-29 | E40: 10-29 | F40: 30-39 | G40: 30-39
A42: Grasses and cereal shoots | D42: 0.4 | E42: 0.31 | F42: 0.17 | G42: 0.13
A43: Non-grass herbs, leafy crops | F43: 0.14 | G43: 0.06
A44: Cereal grain/ear on plant
A45: Large seeds/cereal grain on ground | B45: 0.06 | C45: 0.06 | D45: 0.06 | E45: 0.06 | F45: 0.06 | G45: 0.06
A46: Small seeds (weed seeds) | B46: 0.57 | C46: 0.42 | D46: 0.24 | E46: 0.23 | F46: 0.23 | G46: 0.09
A47: Large fruit (pome)
A48: Small fruit (plum, cherry)
A49: Berries
A50: Foliar arthropods | F50: 0.1 | G50: 0.17
A51: Ground-dwelling arthropods | B51: 0.37 | C51: 0.52 | D51: 0.3 | E51: 0.4 | F51: 0.3 | G51: 0.49
A52: Ground-dwelling arthropods with intercept.
A53: Soil invertebrates
A54: Sum | B54: =SUM(B42:B53) -> 1 | C54: 1 | D54: 1 | E54: 1 | F54: 1 | G54: 1
A57: Spring oilseed rape | B57: April | C57: April | D57: May | E57: May | F57: May | G57: June | H57: August | I57: Sept.
A58: BBCH | B58: 0-9 | C58: 10-19 | D58: 10-19 | E58: 20-39 | F58: 40-59 | G58: 40-59 | H58: Stubble | I58: Stubble
H59: treatm. | I59: treatm.
A60: Grasses and cereal shoots | E60: 0.15 | F60: 0.15 | G60: 0.09 | H60: 0.01 | I60: 0.01
A61: Non-grass herbs, leafy crops | C61: 0.46 | D61: 0.4 | E61: 0.17 | F61: 0.17 | G61: 0.16 | H61: 0.04 | I61: 0.02
A62: Cereal grain/ear on plant
A63: Large seeds/cereal grain on ground | B63: 0.06 | C63: 0.06 | D63: 0.06 | E63: 0.06 | F63: 0.06 | G63: 0.06 | H63: 0.06 | I63: 0.06
A64: Small seeds (weed seeds) | B64: 0.57 | C64: 0.29 | D64: 0.24 | E64: 0.28 | F64: 0.28 | G64: 0.25 | H64: 0.48 | I64: 0.61
A65: Large fruit (pome)
A66: Small fruit (plum, cherry)
A67: Berries
A68: Foliar arthropods | E68: 0.08 | F68: 0.17 | G68: 0.22
A69: Ground-dwelling arthropods | B69: 0.37 | C69: 0.19 | D69: 0.3 | E69: 0.26 | H69: 0.41 | I69: 0.3
A70: Ground-dwelling arthropods with intercept. | F70: 0.17 | G70: 0.22
A71: Soil invertebrates
A72: Sum | B72: =SUM(B60:B71) -> 1 | C72: 1 | D72: 1 | E72: 1 | F72: 1 | G72: 1 | H72: 1 | I72: 1
A75: Winter oil-seed rape | B75: August | C75: Sept. | D75: April | E75: April | F75: April | G75: May | H75: July | I75: August
A76: BBCH | B76: 0-9 | C76: 10-19 | D76: 10-19 | E76: 20-39 | F76: 40-59 | G76: 40-59 | H76: Stubble | I76: Stubble
H77: treatm. | I77: treatm.
A78: Grasses and cereal shoots | E78: 0.19 | F78: 0.19 | G78: 0.15 | H78: 0.03 | I78: 0.01
A79: Non-grass herbs, leafy crops | C79: 0.1 | D79: 0.46 | E79: 0.16 | F79: 0.16 | G79: 0.17 | H79: 0.03 | I79: 0.04
A80: Cereal grain/ear on plant
A81: Large seeds/cereal grain on ground | B81: 0.06 | C81: 0.06 | D81: 0.06 | E81: 0.06 | F81: 0.06 | G81: 0.06 | H81: 0.06 | I81: 0.06
A82: Small seeds (weed seeds) | B82: 0.51 | C82: 0.42 | D82: 0.29 | E82: 0.36 | F82: 0.36 | G82: 0.28 | H82: 0.31 | I82: 0.48
A83: Large fruit (pome)
A84: Small fruit (plum, cherry)
A85: Berries
A86: Foliar arthropods | E86: 0.06 | F86: 0.11 | G86: 0.17
A87: Ground-dwelling arthropods | B87: 0.43 | C87: 0.42 | D87: 0.19 | E87: 0.17 | H87: 0.57 | I87: 0.41
A88: Ground-dwelling arthropods with intercept. | F88: 0.12 | G88: 0.17
A89: Soil invertebrates
A90: Sum | B90: =SUM(B78:B89) -> 1 | C90: 1 | D90: 1 | E90: 1 | F90: 1 | G90: 1 | H90: 1 | I90: 1
A93: Beets | B93: April | C93: May | D93: June | E93: June | F93: July | G93: August | H93: Sept.
A94: BBCH | B94: 0-9 | C94: 10-19 | D94: 10-19 | E94: 20-39 | F94: 40-49 | G94: 40-49 | H94: 40-49
A96: Grasses and cereal shoots | E96: 0.09 | F96: 0.07 | G96: 0.01 | H96: 0.02
A97: Non-grass herbs, leafy crops | C97: 0.63 | D97: 0.31 | E97: 0.16 | F97: 0.07 | G97: 0.11 | H97: 0.07
A98: Cereal grain/ear on plant
A99: Large seeds/cereal grain on ground | B99: 0.06 | D99: 0.06 | E99: 0.06 | F99: 0.06 | G99: 0.06 | H99: 0.06
A100: Small seeds (weed seeds) | B100: 0.57 | C100: 0.21 | D100: 0.23 | E100: 0.25 | F100: 0.1 | G100: 0.3 | H100: 0.43
A101: Large fruit (pome)
A102: Small fruit (plum, cherry)
A103: Berries
A104: Foliar arthropods | E104: 0.11 | F104: 0.35 | G104: 0.26 | H104: 0.21
A105: Ground-dwelling arthropods | B105: 0.37 | C105: 0.16 | D105: 0.4 | E105: 0.33
A106: Ground-dwelling arthropods with intercept. | F106: 0.35 | G106: 0.26 | H106: 0.21
A107: Soil invertebrates
A108: Sum | B108: =SUM(B96:B107) -> 1 | C108: 1 | D108: 1 | E108: 1 | F108: 1 | G108: 1 | H108: 1
A111: Potatoes | B111: April | C111: May | D111: June | E111: July | F111: August | G111: August | H111: Sept.
A112: BBCH | B112: 0-9 | C112: 10-19 | D112: 20-39 | E112: 40-89 | F112: 45-89 | G112: 90-99 | H112: 90-99
G113: (desiccat.) | H113: (desiccat.)
A114: Grasses and cereal shoots | C114: 0.16 | D114: 0.1 | E114: 0.07 | F114: 0.01 | G114: 0.01 | H114: 0.01
A115: Non-grass herbs, leafy crops | C115: 0.09 | D115: 0.08 | E115: 0.03 | F115: 0.05 | G115: 0.03 | H115: 0.02
A116: Cereal grain/ear on plant
A117: Large seeds/cereal grain on ground | B117: 0.06 | C117: 0.06 | D117: 0.06 | E117: 0.06 | F117: 0.06 | G117: 0.06 | H117: 0.06
A118: Small seeds (weed seeds) | B118: 0.57 | C118: 0.31 | D118: 0.28 | E118: 0.1 | F118: 0.32 | G118: 0.33 | H118: 0.46
A119: Large fruit (pome)
A120: Small fruit (plum, cherry)
A121: Berries
A122: Foliar arthropods | D122: 0.12 | E122: 0.37 | F122: 0.28 | G122: 0.14 | H122: 0.11
A123: Ground-dwelling arthropods | B123: 0.37 | C123: 0.38 | D123: 0.36 | G123: 0.43 | H123: 0.34
A124: Ground-dwelling arthropods with intercept. | E124: 0.37 | F124: 0.28
A125: Soil invertebrates
A126: Sum | B126: =SUM(B114:B125) -> 1 | C126: 1 | D126: 1 | E126: 1 | F126: 1 | G126: 1 | H126: 1
A129: Pulses | B129: April | C129: May | D129: May | E129: June | F129: May | G129: June | H129: June | I129: July | J129: August | K129: July | L129: August
A130: BBCH | B130: 0-9 | C130: 0-9 | D130: 10-19 | E130: 10-19 | F130: 20-39 | G130: 20-39 | H130: 40-79 | I130: 40-79 | J130: 60-79 | K130: 80-99 | L130: 80-99
K131: (desiccat.) | L131: (desiccat.)
A132: Grasses and cereal shoots | F132: 0.15 | G132: 0.09 | H132: 0.09 | I132: 0.07 | J132: 0.01 | K132: 0.04 | L132: 0.01
A133: Non-grass herbs, leafy crops | D133: 0.4 | E133: 0.31 | F133: 0.17 | G133: 0.16 | H133: 0.16 | I133: 0.07 | J133: 0.11 | K133: 0.04 | L133: 0.06
A134: Cereal grain/ear on plant
A135: Large seeds/cereal grain on ground | B135: 0.06 | C135: 0.06 | D135: 0.06 | E135: 0.06 | F135: 0.06 | G135: 0.06 | H135: 0.06 | I135: 0.06 | J135: 0.06 | K135: 0.06 | L135: 0.06
A136: Small seeds (weed seeds) | B136: 0.57 | C136: 0.42 | D136: 0.24 | E136: 0.23 | F136: 0.28 | G136: 0.25 | H136: 0.25 | I136: 0.1 | J136: 0.3 | K136: 0.1 | L136: 0.32
A137: Large fruit (pome)
A138: Small fruit (plum, cherry)
A139: Berries
A140: Foliar arthropods | F140: 0.08 | G140: 0.11 | H140: 0.22 | I140: 0.35 | J140: 0.26 | K140: 0.19 | L140: 0.14
A141: Ground-dwelling arthropods | B141: 0.37 | C141: 0.52 | D141: 0.3 | E141: 0.4 | F141: 0.26 | G141: 0.33
A142: Ground-dwelling arthropods with intercept. | H142: 0.22 | I142: 0.35 | J142: 0.26 | K142: 0.57 | L142: 0.41
A143: Soil invertebrates
A144: Sum | B144: =SUM(B132:B143) -> 1 | C144: 1 | D144: 1 | E144: 1 | F144: 1 | G144: 1 | H144: 1 | I144: 1 | J144: 1 | K144: 1 | L144: 1
A147: Field grown vegetables | B147: April | C147: May | D147: June | E147: May | F147: June | G147: July | H147: August | I147: May | J147: June | K147: July | L147: August | M147: Sept. | N147: May | O147: June | P147: July | Q147: August | R147: Sept.
A148: BBCH | B148: 0-9 | C148: 0-9 | D148: 0-9 | E148: 10-19 | F148: 10-19 | G148: 10-19 | H148: 10-19 | I148: 20-39 | J148: 20-39 | K148: 20-39 | L148: 20-39 | M148: 20-39 | N148: 40+ | O148: 40+ | P148: 40+ | Q148: 40+ | R148: 40+
A150: Grasses and cereal shoots | I150: 0.15 | J150: 0.09 | K150: 0.07 | L150: 0.01 | M150: 0.02 | N150: 0.15 | O150: 0.09 | P150: 0.07 | Q150: 0.01 | R150: 0.02
A151: Non-grass herbs, leafy crops | E151: 0.4 | F151: 0.31 | G151: 0.19 | H151: 0.13 | I151: 0.17 | J151: 0.16 | K151: 0.07 | L151: 0.11 | M151: 0.07 | N151: 0.17 | O151: 0.16 | P151: 0.07 | Q151: 0.11 | R151: 0.07
A152: Cereal grain/ear on plant
A153: Large seeds/cereal grain on ground | B153: 0.06 | C153: 0.06 | D153: 0.06 | E153: 0.06 | F153: 0.06 | G153: 0.06 | H153: 0.06 | I153: 0.06 | J153: 0.06 | K153: 0.06 | L153: 0.06 | M153: 0.06 | N153: 0.06 | O153: 0.06 | P153: 0.06 | Q153: 0.06 | R153: 0.06
A154: Small seeds (weed seeds) | B154: 0.57 | C154: 0.42 | D154: 0.34 | E154: 0.24 | F154: 0.23 | G154: 0.09 | H154: 0.3 | I154: 0.28 | J154: 0.25 | K154: 0.1 | L154: 0.3 | M154: 0.43 | N154: 0.28 | O154: 0.25 | P154: 0.1 | Q154: 0.3 | R154: 0.43
A155: Large fruit (pome)
A156: Small fruit (plum, cherry)
A157: Berries
A158: Foliar arthropods | I158: 0.17 | J158: 0.22 | K158: 0.35 | L158: 0.26 | M158: 0.21 | N158: 0.17 | O158: 0.22 | P158: 0.35 | Q158: 0.26 | R158: 0.21
A159: Ground-dwelling arthropods | B159: 0.37 | C159: 0.52 | D159: 0.6 | E159: 0.3 | F159: 0.4 | G159: 0.66 | H159: 0.51 | I159: 0.17 | J159: 0.22 | K159: 0.35 | L159: 0.26 | M159: 0.21
A160: Ground-dwelling arthropods with intercept. | N160: 0.17 | O160: 0.22 | P160: 0.35 | Q160: 0.26 | R160: 0.21
A161: Soil invertebrates
A162: Sum | B162: =SUM(B150:B161) -> 1 | C162: 1 | D162: 1 | E162: 1 | F162: 1 | G162: 1 | H162: 1 | I162: 1 | J162: 1 | K162: 1 | L162: 1 | M162: 1 | N162: 1 | O162: 1 | P162: 1 | Q162: 1 | R162: 1
A165: Strawberries | B165: April | C165: May | D165: June | E165: July | F165: August | G165: Sept. | H165: April | I165: May | J165: June | K165: June | L165: July | M165: July | N165: August | O165: Sept. | P165: April | Q165: May | R165: June | S165: July | T165: August | U165: Sept.
A166: Stage / BBCH | B166: Planting | H166: Pre-flowering (20-59) | K166: Flowering and fruit | M166: Post-harvest | P166: Termination
K167: development (60-89)
A168: Grasses and cereal shoots | B168: 0.19 | C168: 0.15 | D168: 0.09 | E168: 0.07 | F168: 0.01 | G168: 0.02 | H168: 0.2 | I168: 0.15 | J168: 0.09 | K168: 0.09 | L168: 0.07 | M168: 0.07 | N168: 0.01 | O168: 0.02 | P168: 0.12 | Q168: 0.09 | R168: 0.05 | S168: 0.04 | T168: 0.01 | U168: 0.01
A169: Non-grass herbs, leafy crops | B169: 0.16 | C169: 0.17 | D169: 0.16 | E169: 0.07 | F169: 0.11 | G169: 0.06 | H169: 0.16 | I169: 0.17 | J169: 0.16 | K169: 0.16 | L169: 0.07 | M169: 0.07 | N169: 0.11 | O169: 0.07 | P169: 0.1 | Q169: 0.1 | R169: 0.09 | S169: 0.04 | T169: 0.06 | U169: 0.03
A170: Cereal grain/ear on plant
A171: Large seeds/cereal grain on ground | B171: 0.06 | C171: 0.06 | D171: 0.06 | E171: 0.06 | F171: 0.06 | G171: 0.06 | H171: 0.06 | I171: 0.06 | J171: 0.06 | K171: 0.06 | L171: 0.06 | M171: 0.06 | N171: 0.06 | O171: 0.06 | P171: 0.06 | Q171: 0.06 | R171: 0.06 | S171: 0.06 | T171: 0.06 | U171: 0.06
A172: Small seeds (weed seeds) | B172: 0.36 | C172: 0.28 | D172: 0.25 | E172: 0.1 | F172: 0.3 | G172: 0.43 | H172: 0.36 | I172: 0.28 | J172: 0.25 | K172: 0.25 | L172: 0.1 | M172: 0.1 | N172: 0.3 | O172: 0.43 | P172: 0.44 | Q172: 0.34 | R172: 0.29 | S172: 0.1 | T172: 0.32 | U172: 0.45
A173: Large fruit (pome)
A174: Small fruit (plum, cherry)
A175: Berries
A176: Foliar arthropods | H176: 0.11 | I176: 0.17 | J176: 0.22 | K176: 0.22 | L176: 0.35 | M176: 0.35 | N176: 0.26 | O176: 0.21 | P176: 0.07 | Q176: 0.1 | R176: 0.13 | S176: 0.19 | T176: 0.14 | U176: 0.11
A177: Ground-dwelling arthropods | B177: 0.23 | C177: 0.34 | D177: 0.44 | E177: 0.7 | F177: 0.52 | G177: 0.43
A178: Ground-dwelling arthropods with intercept. | H178: 0.11 | I178: 0.17 | J178: 0.22 | K178: 0.22 | L178: 0.35 | M178: 0.35 | N178: 0.26 | O178: 0.21 | P178: 0.21 | Q178: 0.31 | R178: 0.38 | S178: 0.57 | T178: 0.41 | U178: 0.34
A179: Soil invertebrates
A180: Sum | B180: =SUM(B168:B179) -> 1 | C180: 1 | D180: 1 | E180: 1 | F180: 1 | G180: 1 | H180: 1 | I180: 1 | J180: 1 | K180: 1 | L180: 1 | M180: 1 | N180: 1 | O180: 1 | P180: 1 | Q180: 1 | R180: 1 | S180: 1 | T180: 1 | U180: 1
A183: Rotational grass (seed grass, leys) | B183: April | C183: May | D183: June | E183: July | F183: August | G183: Sept. | H183: April | I183: May | J183: June | K183: July | L183: August | M183: Sept. | N183: April | O183: May | P183: June | Q183: July | R183: August | S183: Sept.
A184: Stage | B184: Short grass | H184: Medium & long grass | N184: Termination
A185: Grasses and cereal shoots | B185: 0.35 | C185: 0.28 | D185: 0.18 | E185: 0.13 | F185: 0.02 | G185: 0.03 | H185: 0.21 | I185: 0.16 | J185: 0.1 | K185: 0.07 | L185: 0.01 | M185: 0.02 | N185: 0.22 | O185: 0.17 | P185: 0.11 | Q185: 0.07 | R185: 0.01 | S185: 0.02
A186: Non-grass herbs, leafy crops | B186: 0.07 | C186: 0.08 | D186: 0.08 | E186: 0.03 | F186: 0.06 | G186: 0.03 | H186: 0.09 | I186: 0.09 | J186: 0.08 | K186: 0.03 | L186: 0.06 | M186: 0.03 | N186: 0.05 | O186: 0.05 | P186: 0.04 | Q186: 0.02 | R186: 0.03 | S186: 0.02
A187: Cereal grain/ear on plant
A188: Large seeds/cereal grain on ground | B188: 0.06 | C188: 0.06 | D188: 0.06 | E188: 0.06 | F188: 0.06 | G188: 0.06 | H188: 0.06 | I188: 0.06 | J188: 0.06 | K188: 0.06 | L188: 0.06 | M188: 0.06 | N188: 0.06 | O188: 0.06 | P188: 0.06 | Q188: 0.06 | R188: 0.06 | S188: 0.06
A189: Small seeds (weed seeds) | B189: 0.32 | C189: 0.26 | D189: 0.25 | E189: 0.1 | F189: 0.32 | G189: 0.44 | H189: 0.39 | I189: 0.31 | J189: 0.28 | K189: 0.1 | L189: 0.32 | M189: 0.45 | N189: 0.41 | O189: 0.32 | P189: 0.29 | Q189: 0.1 | R189: 0.33 | S189: 0.45
A190: Large fruit (pome)
A191: Small fruit (plum, cherry)
A192: Berries
A193: Foliar arthropods | H193: 0.12 | I193: 0.19 | J193: 0.24 | K193: 0.37 | L193: 0.27 | M193: 0.22 | N193: 0.06 | O193: 0.1 | P193: 0.12 | Q193: 0.19 | R193: 0.14 | S193: 0.11
A194: Ground-dwelling arthropods | B194: 0.2 | C194: 0.32 | D194: 0.43 | E194: 0.68 | F194: 0.54 | G194: 0.44
A195: Ground-dwelling arthropods with intercept. | H195: 0.13 | I195: 0.19 | J195: 0.24 | K195: 0.37 | L195: 0.28 | M195: 0.22 | N195: 0.2 | O195: 0.3 | P195: 0.38 | Q195: 0.56 | R195: 0.43 | S195: 0.34
A196: Soil invertebrates
A197: Sum | B197: =SUM(B185:B196) -> 1 | C197: 1 | D197: 1 | E197: 1 | F197: 1 | G197: 1 | H197: 1 | I197: 1 | J197: 1 | K197: 1 | L197: 1 | M197: 1 | N197: 1 | O197: 1 | P197: 1 | Q197: 1 | R197: 1 | S197: 1
A200: Non-rotational grass (turf, pasture) | B200: April | C200: May | D200: August | E200: Sept. | F200: April | G200: May | H200: June | I200: July | J200: August | K200: Sept. | L200: April | M200: May | N200: June | O200: July | P200: August | Q200: Sept. | R200: April | S200: May | T200: June | U200: July | V200: August | W200: Sept.
A201: Stage | B201: Sowing & pre-emergence | F201: Short grass | L201: Medium & long grass | R201: Termination
A202: Grasses and cereal shoots | F202: 0.37 | G202: 0.29 | H202: 0.2 | I202: 0.14 | J202: 0.02 | K202: 0.04 | L202: 0.23 | M202: 0.17 | N202: 0.11 | O202: 0.07 | P202: 0.02 | Q202: 0.02 | R202: 0.24 | S202: 0.18 | T202: 0.11 | U202: 0.08 | V202: 0.01 | W202: 0.02
A203: Non-grass herbs, leafy crops | F203: 0.08 | G203: 0.09 | H203: 0.08 | I203: 0.04 | J203: 0.06 | K203: 0.04 | L203: 0.09 | M203: 0.1 | N203: 0.09 | O203: 0.04 | P203: 0.06 | Q203: 0.04 | R203: 0.05 | S203: 0.05 | T203: 0.05 | U203: 0.02 | V203: 0.03 | W203: 0.02
A204: Cereal grain/ear on plant
A205: Large seeds/cereal grain on ground
A206: Small seeds (weed seeds) | B206: 0.61 | C206: 0.45 | D206: 0.37 | E206: 0.5 | F206: 0.34 | G206: 0.28 | H206: 0.26 | I206: 0.1 | J206: 0.34 | K206: 0.46 | L206: 0.42 | M206: 0.33 | N206: 0.29 | O206: 0.11 | P206: 0.34 | Q206: 0.47 | R206: 0.43 | S206: 0.35 | T206: 0.31 | U206: 0.11 | V206: 0.35 | W206: 0.48
A207: Large fruit (pome)
A208: Small fruit (plum, cherry)
A209: Berries
A210: Foliar arthropods | L210: 0.13 | M210: 0.2 | N210: 0.25 | O210: 0.39 | P210: 0.29 | Q210: 0.23 | R210: 0.07 | S210: 0.1 | T210: 0.13 | U210: 0.2 | V210: 0.15 | W210: 0.12
A211: Ground-dwelling arthropods | B211: 0.39 | C211: 0.55 | D211: 0.63 | E211: 0.5 | F211: 0.21 | G211: 0.34 | H211: 0.46 | I211: 0.72 | J211: 0.58 | K211: 0.46
A212: Ground-dwelling arthropods with intercept. | L212: 0.13 | M212: 0.2 | N212: 0.26 | O212: 0.39 | P212: 0.29 | Q212: 0.24 | R212: 0.21 | S212: 0.32 | T212: 0.4 | U212: 0.59 | V212: 0.46 | W212: 0.36
A213: Soil invertebrates
A214: Sum | B214: =SUM(B202:B213) -> 1 | C214: 1 | D214: 1 | E214: 1 | F214: 1 | G214: 1 | H214: 1 | I214: 1 | J214: 1 | K214: 1 | L214: 1 | M214: 1 | N214: 1 | O214: 1 | P214: 1 | Q214: 1 | R214: 1 | S214: 1 | T214: 1 | U214: 1 | V214: 1 | W214: 1

Sheet PD Wood mouse
A1: Wood mouse PD - fresh weight
A3: Spring cereals | B3: April | C3: May | D3: June | E3: June | F3: July | G3: July | H3: August | I3: August | J3: August | K3: Sept.
A4: BBCH | B4: 0-9 | C4: 10-29 | D4: 30-39 | E4: 40-69 | F4: 40-69 | G4: 70-89 | H4: 70-89 | I4: Pre-harv. | J4: Stubble | K4: Stubble
I5: desiccat. | J5: treatm. | K5: treatm.
A6: Grasses and cereal shoots | C6: 0.16 | D6: 0.06 | E6: 0.06 | F6: 0.07 | G6: 0.05 | H6: 0.07 | I6: 0.04 | J6: 0.04 | K6: 0.03
A7: Non-grass herbs, leafy crops | D7: 0.03 | E7: 0.03 | F7: 0.03 | G7: 0.03 | H7: 0.03 | I7: 0.02 | J7: 0.02 | K7: 0.02
A8: Cereal grain/ear on plant | G8: 0.16 | H8: 0.12 | I8: 0.13
A9: Large seeds/cereal grain on ground | B9: 0.29 | C9: 0.3 | D9: 0.32 | E9: 0.32 | F9: 0.32 | G9: 0.32 | H9: 0.25 | I9: 0.26 | J9: 0.39 | K9: 0.34
A10: Small seeds (weed seeds) | C10: 0.04 | D10: 0.25 | E10: 0.25 | F10: 0.21 | G10: 0.16 | H10: 0.2 | I10: 0.21 | J10: 0.21 | K10: 0.21
A11: Large fruit (pome)
A12: Small fruit (plum, cherry)
A13: Berries
A14: Foliar arthropods
A15: Ground-dwelling arthropods | B15: 0.45 | C15: 0.1 | D15: 0.25 | J15: 0.29 | K15: 0.26
A16: Ground-dwelling arthropods with intercept. | E16: 0.25 | F16: 0.37 | G16: 0.28 | H16: 0.28 | I16: 0.29
A17: Soil invertebrates | B17: 0.26 | C17: 0.4 | D17: 0.09 | E17: 0.09 | H17: 0.05 | I17: 0.05 | J17: 0.05 | K17: 0.14
A18: Sum | B18: =SUM(B6:B17) -> 1 | C18: 1 | D18: 1 | E18: 1 | F18: 1 | G18: 1 | H18: 1 | I18: 1 | J18: 1 | K18: 1
A21: Winter cereals | B21: Sept. | C21: Oct. | D21: Sept. | E21: Oct. | F21: Nov. | G21: March | H21: April | I21: May | J21: May | K21: June | L21: May | M21: June | N21: July | O21: July | P21: August | Q21: July | R21: August | S21: August | T21: Sept.
A22: BBCH | B22: 0-9 | C22: 0-9 | D22: 10-19 | E22: 10-19 | F22: 10-19 | G22: 10-19 | H22: 10-29 | I22: 10-29 | J22: 30-39 | K22: 30-39 | L22: 40-59 | M22: 40-69 | N22: 60-69 | O22: 70-89 | P22: 70-89 | Q22: Pre-harv. | R22: Pre-harv. | S22: Stubble | T22: Stubble
Q23: desiccat. | R23: desiccat. | S23: treatm. | T23: treatm.
A24: Grasses and cereal shoots | D24: 0.09 | E24: 0.25 | F24: 0.4 | G24: 0.23 | H24: 0.24 | I24: 0.16 | J24: 0.11 | K24: 0.06 | L24: 0.11 | M24: 0.06 | N24: 0.07 | O24: 0.05 | P24: 0.07 | Q24: 0.03 | R24: 0.04 | S24: 0.04 | T24: 0.03
A25: Non-grass herbs, leafy crops | J25: 0.05 | K25: 0.03 | L25: 0.05 | M25: 0.03 | N25: 0.03 | O25: 0.03 | P25: 0.03 | Q25: 0.01 | R25: 0.02 | S25: 0.02 | T25: 0.02
A26: Cereal grain/ear on plant | O26: 0.16 | P26: 0.12 | Q26: 0.17 | R26: 0.13
A27: Large seeds/cereal grain on ground | B27: 0.42 | C27: 0.55 | D27: 0.33 | E27: 0.3 | F27: 0.4 | G27: 0.25 | H27: 0.05 | I27: 0.3 | J27: 0.3 | K27: 0.32 | L27: 0.3 | M27: 0.32 | N27: 0.32 | O27: 0.32 | P27: 0.25 | Q27: 0.33 | R27: 0.26 | S27: 0.39 | T27: 0.34
A28: Small seeds (weed seeds) | B28: 0.2 | C28: 0.15 | D28: 0.2 | E28: 0.15 | F28: 0.08 | I28: 0.04 | J28: 0.04 | K28: 0.25 | L28: 0.04 | M28: 0.25 | N28: 0.21 | O28: 0.16 | P28: 0.2 | Q28: 0.17 | R28: 0.21 | S28: 0.21 | T28: 0.21
A29: Large fruit (pome)
A30: Small fruit (plum, cherry)
A31: Berries
A32: Foliar arthropods
A33: Ground-dwelling arthropods | B33: 0.25 | C33: 0.3 | D33: 0.25 | E33: 0.3 | F33: 0.09 | G33: 0.27 | H33: 0.45 | I33: 0.1 | J33: 0.1 | K33: 0.25 | S33: 0.29 | T33: 0.26
A34: Ground-dwelling arthropods with intercept. | L34: 0.1 | M34: 0.25 | N34: 0.37 | O34: 0.28 | P34: 0.28 | Q34: 0.29 | R34: 0.29
A35: Soil invertebrates | B35: 0.13 | D35: 0.13 | F35: 0.03 | G35: 0.25 | H35: 0.26 | I35: 0.4 | J35: 0.4 | K35: 0.09 | L35: 0.4 | M35: 0.09 | P35: 0.05 | R35: 0.05 | S35: 0.05 | T35: 0.14
A36: Sum | B36: =SUM(B24:B35) -> 1 | C36: 1 | D36: 1 | E36: 1 | F36: 1 | G36: 1 | H36: 1 | I36: 1 | J36: 1 | K36: 1 | L36: 1 | M36: 1 | N36: 1 | O36: 1 | P36: 1 | Q36: 1 | R36: 1 | S36: 1 | T36: 1
A39: Winter cereals - Green (1979) alternative | B39: Sept. | C39: Sept. | D39: Jan.- | E39: April- | F39: April-
B40: -Dec. | C40: -Dec. | D40: March | E40: June | F40: June
A41: BBCH | B41: 0-9 | C41: 10-19 | D41: 10-19 | E41: 14-39 | F41: 40-69
A42: Grasses and cereal shoots | D42: 0.08 | E42: 0.01 | F42: 0.01
A43: Non-grass herbs, leafy crops
A44: Cereal grain/ear on plant
A45: Large seeds/cereal grain on ground | B45: 0.6 | C45: 0.6 | D45: 0.55 | E45: 0.06 | F45: 0.06
A46: Small seeds (weed seeds) | B46: 0.24 | C46: 0.24 | D46: 0.05 | E46: 0.8 | F46: 0.8
A47: Large fruit (pome)
A48: Small fruit (plum, cherry)
A49: Berries
A50: Foliar arthropods
A51: Ground-dwelling arthropods | B51: 0.16 | C51: 0.16 | D51: 0.16 | E51: 0.12
A52: Ground-dwelling arthropods with intercept. | F52: 0.12
A53: Soil invertebrates | D53: 0.16 | E53: 0.01 | F53: 0.01
A54: Sum | B54: =SUM(B42:B53) -> 1 | C54: 1 | D54: 1 | E54: 1 | F54: 1
A57: Maize | B57: April | C57: May | D57: May | E57: June | F57: June | G57: July
A58: BBCH | B58: 0-9 | C58: 0-9 | D58: 10-29 | E58: 10-29 | F58: 30-39 | G58: 30-39
A60: Grasses and cereal shoots | D60: 0.22 | E60: 0.12 | F60: 0.08 | G60: 0.1
A61: Non-grass herbs, leafy crops | F61: 0.04 | G61: 0.05
A62: Cereal grain/ear on plant
A63: Large seeds/cereal grain on ground | B63: 0.29 | C63: 0.29 | D63: 0.05 | E63: 0.05 | F63: 0.05 | G63: 0.05
A64: Small seeds (weed seeds) | C64: 0.05 | D64: 0.05 | E64: 0.35 | F64: 0.35 | G64: 0.29
A65: Large fruit (pome)
A66: Small fruit (plum, cherry)
A67: Berries
A68: Foliar arthropods
A69: Ground-dwelling arthropods | B69: 0.45 | C69: 0.13 | D69: 0.14 | E69: 0.35 | F69: 0.35 | G69: 0.51
A70: Ground-dwelling arthropods with intercept.
A71: Soil invertebrates | B71: 0.26 | C71: 0.53 | D71: 0.54 | E71: 0.13 | F71: 0.13
A72: Sum | B72: =SUM(B60:B71) -> 1 | C72: 1 | D72: 1 | E72: 1 | F72: 1 | G72: 1
A75: Spring oilseed rape | B75: April | C75: April | D75: May | E75: May | F75: May | G75: June | H75: July | I75: July | J75: August | K75: July | L75: August | M75: August | N75: Sept.
A76: BBCH | B76: 0-9 | C76: 10-19 | D76: 10-19 | E76: 20-39 | F76: 40-59 | G76: 40-79 | H76: 60-79 | I76: 80-89 | J76: 80-89 | K76: Pre-harv. | L76: Pre-harv. | M76: Stubble | N76: Stubble
K77: desiccat. | L77: desiccat. | M77: treatm. | N77: treatm.
A78: Grasses and cereal shoots | E78: 0.07 | F78: 0.07 | G78: 0.04 | H78: 0.05 | I78: 0.05 | J78: 0.05 | K78: 0.02 | L78: 0.02 | M78: 0.02 | N78: 0.02
A79: Non-grass herbs, leafy crops | C79: 0.24 | D79: 0.22 | E79: 0.15 | F79: 0.15 | G79: 0.08 | H79: 0.1 | I79: 0.09 | J79: 0.09 | K79: 0.05 | L79: 0.05 | M79: 0.05 | N79: 0.04
A80: Cereal grain/ear on plant
A81: Large seeds/cereal grain on ground | B81: 0.05 | C81: 0.05 | D81: 0.05 | E81: 0.05 | F81: 0.05 | G81: 0.05 | H81: 0.05 | I81: 0.05 | J81: 0.05 | K81: 0.05 | L81: 0.05 | M81: 0.05 | N81: 0.05
A82: Small seeds (weed seeds) | B82: 0.07 | D82: 0.05 | E82: 0.05 | F82: 0.05 | G82: 0.35 | H82: 0.29 | I82: 0.34 | J82: 0.35 | K82: 0.41 | L82: 0.42 | M82: 0.38 | N82: 0.35
A83: Large fruit (pome)
A84: Small fruit (plum, cherry)
A85: Berries
A86: Foliar arthropods
A87: Ground-dwelling arthropods | B87: 0.56 | C87: 0.45 | D87: 0.14 | E87: 0.14 | M87: 0.42 | N87: 0.35
A88: Ground-dwelling arthropods with intercept. | F88: 0.14 | G88: 0.35 | H88: 0.51 | I88: 0.47 | J88: 0.39 | K88: 0.47 | L88: 0.39
A89: Soil invertebrates | B89: 0.32 | C89: 0.26 | D89: 0.54 | E89: 0.54 | F89: 0.54 | G89: 0.13 | J89: 0.07 | L89: 0.07 | M89: 0.08 | N89: 0.19
A90: Sum | B90: =SUM(B78:B89) -> 1 | C90: 1 | D90: 1 | E90: 1 | F90: 1 | G90: 1 | H90: 1 | I90: 1 | J90: 1 | K90: 1 | L90: 1 | M90: 1 | N90: 1
A93: Winter oilseed rape | B93: August | C93: Sept. | D93: Oct. | E93: March | F93: April | G93: Oct. | H93: Nov. | I93: March | J93: April | K93: April | L93: May | M93: June | N93: June | O93: July | P93: July | Q93: July | R93: August
A94: BBCH | B94: 0-9 | C94: 10-19 | D94: 10-19 | E94: 10-19 | F94: 10-19 | G94: 20-39 | H94: 20-39 | I94: 20-39 | J94: 20-39 | K94: 40-59 | L94: 40-79 | M94: 70-79 | N94: 80-89 | O94: 80-89 | P94: Pre-harv. | Q94: Stubble | R94: Stubble
P95: desiccat. | Q95: treatm. | R95: treatm.
A96: Grasses and cereal shoots | G96: 0.11 | H96: 0.21 | I96: 0.09 | J96: 0.08 | K96: 0.08 | L96: 0.07 | M96: 0.04 | N96: 0.04 | O96: 0.05 | P96: 0.02 | Q96: 0.02 | R96: 0.02
A97: Non-grass herbs, leafy crops | C97: 0.13 | D97: 0.34 | E97: 0.27 | F97: 0.24 | G97: 0.23 | H97: 0.42 | I97: 0.18 | J97: 0.16 | K97: 0.16 | L97: 0.15 | M97: 0.08 | N97: 0.08 | O97: 0.09 | P97: 0.05 | Q97: 0.05 | R97: 0.05
A98: Cereal grain/ear on plant
A99: Large seeds/cereal grain on ground | B99: 0.05 | C99: 0.05 | D99: 0.05 | E99: 0.05 | F99: 0.05 | G99: 0.05 | H99: 0.05 | I99: 0.05 | J99: 0.05 | K99: 0.05 | L99: 0.05 | M99: 0.05 | N99: 0.05 | O99: 0.05 | P99: 0.05 | Q99: 0.05 | R99: 0.05
A100: Small seeds (weed seeds) | B100: 0.41 | C100: 0.28 | D100: 0.2 | E100: 0.09 | G100: 0.2 | H100: 0.13 | I100: 0.09 | L100: 0.05 | M100: 0.35 | N100: 0.4 | O100: 0.34 | P100: 0.41 | Q100: 0.37 | R100: 0.38
A101: Large fruit (pome)
A102: Small fruit (plum, cherry)
A103: Berries
A104: Foliar arthropods
A105: Ground-dwelling arthropods | B105: 0.46 | C105: 0.36 | D105: 0.41 | E105: 0.31 | F105: 0.45 | G105: 0.41 | H105: 0.14 | I105: 0.31 | J105: 0.45 | Q105: 0.51 | R105: 0.42
A106: Ground-dwelling arthropods with intercept. | K106: 0.45 | L106: 0.14 | M106: 0.35 | N106: 0.32 | O106: 0.47 | P106: 0.47
A107: Soil invertebrates | B107: 0.08 | C107: 0.18 | E107: 0.28 | F107: 0.26 | H107: 0.05 | I107: 0.28 | J107: 0.26 | K107: 0.26 | L107: 0.54 | M107: 0.13 | N107: 0.11 | R107: 0.08
A108: Sum | B108: =SUM(B96:B107) -> 1 | C108: 1 | D108: 1 | E108: 1 | F108: 1 | G108: 1 | H108: 1 | I108: 1 | J108: 1 | K108: 1 | L108: 1 | M108: 1 | N108: 1 | O108: 1 | P108: 1 | Q108: 1 | R108: 1
A111: Beets | B111: April | C111: May | D111: June | E111: June | F111: July | G111: August | H111: Sept. | I111: Oct.
A112: BBCH | B112: 0-9 | C112: 10-19 | D112: 10-19 | E112: 20-39 | F112: 40-49 | G112: 40-49 | H112: 40-49 | I112: 40-49
A114: Grasses and cereal shoots | E114: 0.04 | F114: 0.05 | G114: 0.05 | H114: 0.04 | I114: 0.11
A115: Non-grass herbs, leafy crops | C115: 0.22 | D115: 0.12 | E115: 0.08 | F115: 0.1 | G115: 0.1 | H115: 0.09 | I115: 0.23
A116: Cereal grain/ear on plant
A117: Large seeds/cereal grain on ground | B117: 0.05 | C117: 0.05 | D117: 0.05 | E117: 0.05 | F117: 0.05 | G117: 0.05 | H117: 0.05 | I117: 0.05
A118: Small seeds (weed seeds) | B118: 0.07 | C118: 0.05 | D118: 0.35 | E118: 0.35 | F118: 0.29 | G118: 0.3 | H118: 0.28 | I118: 0.2
A119: Large fruit (pome)
A120: Small fruit (plum, cherry)
A121: Berries
A122: Foliar arthropods
A123: Ground-dwelling arthropods | B123: 0.56 | C123: 0.14 | D123: 0.35 | E123: 0.35
A124: Ground-dwelling arthropods with intercept. | F124: 0.51 | G124: 0.42 | H124: 0.36 | I124: 0.41
A125: Soil invertebrates | B125: 0.32 | C125: 0.54 | D125: 0.13 | E125: 0.13 | G125: 0.08 | H125: 0.18
A126: Sum | B126: =SUM(B114:B125) -> 1 | C126: 1 | D126: 1 | E126: 1 | F126: 1 | G126: 1 | H126: 1 | I126: 1
A129: Potatoes | B129: April | C129: May | D129: June | E129: July | F129: August | G129: August | H129: Sept.
A130: BBCH | B130: 0-9 | C130: 10-19 | D130: 20-39 | E130: 40-89 | F130: 45-89 | G130: 90-99 | H130: 90-99
G131: (desiccat.) | H131: (desiccat.)
A132: Grasses and cereal shoots | C132: 0.06 | D132: 0.03 | E132: 0.04 | F132: 0.04 | G132: 0.02 | H132: 0.02
A133: Non-grass herbs, leafy crops | C133: 0.06 | D133: 0.03 | E133: 0.04 | F133: 0.04 | G133: 0.02 | H133: 0.02
A134: Cereal grain/ear on plant
A135: Large seeds/cereal grain on ground | B135: 0.05 | C135: 0.05 | D135: 0.05 | E135: 0.05 | F135: 0.05 | G135: 0.05 | H135: 0.05
A136: Small seeds (weed seeds) | C136: 0.06 | D136: 0.37 | E136: 0.32 | F136: 0.33 | G136: 0.34 | H136: 0.32
A137: Large fruit (pome)
A138: Small fruit (plum, cherry)
A139: Berries
A140: Foliar arthropods
A141: Ground-dwelling arthropods | B141: 0.6 | C141: 0.16 | D141: 0.38 | G141: 0.48 | H141: 0.39
A142: Ground-dwelling arthropods with intercept. | E142: 0.55 | F142: 0.46
A143: Soil invertebrates | B143: 0.35 | C143: 0.61 | D143: 0.14 | F143: 0.08 | G143: 0.09 | H143: 0.2
A144: Sum | B144: =SUM(B132:B143) -> 1 | C144: 1 | D144: 1 | E144: 1 | F144: 1 | G144: 1 | H144: 1
A147: Pulses | B147: April | C147: May | D147: May | E147: June | F147: May | G147: June | H147: June | I147: July | J147: August | K147: July | L147: August
A148: BBCH | B148: 0-9 | C148: 0-9 | D148: 10-19 | E148: 10-19 | F148: 20-39 | G148: 20-39 | H148: 40-79 | I148: 40-79 | J148: 60-79 | K148: 80-99 | L148: 80-99
K149: (desiccat.) | L149: (desiccat.)
A150: Grasses and cereal shoots | F150: 0.07 | G150: 0.04 | H150: 0.04 | I150: 0.05 | J150: 0.05 | K150: 0.02 | L150: 0.03
A151: Non-grass herbs, leafy crops | D151: 0.22 | E151: 0.12 | F151: 0.15 | G151: 0.08 | H151: 0.08 | I151: 0.1 | J151: 0.1 | K151: 0.05 | L151: 0.05
A152: Cereal grain/ear on plant
A153: Large seeds/cereal grain on ground | B153: 0.29 | C153: 0.29 | D153: 0.05 | E153: 0.05 | F153: 0.05 | G153: 0.05 | H153: 0.05 | I153: 0.05 | J153: 0.05 | K153: 0.1 | L153: 0.1
A154: Small seeds (weed seeds) | C154: 0.05 | D154: 0.05 | E154: 0.35 | F154: 0.05 | G154: 0.35 | H154: 0.35 | I154: 0.29 | J154: 0.3 | K154: 0.3 | L154: 0.31
A155: Large fruit (pome)
A156: Small fruit (plum, cherry)
A157: Berries
A158: Foliar arthropods
A159: Ground-dwelling arthropods | B159: 0.45 | C159: 0.13 | D159: 0.14 | E159: 0.35 | F159: 0.14 | G159: 0.35
A160: Ground-dwelling arthropods with intercept. | H160: 0.35 | I160: 0.51 | J160: 0.42 | K160: 0.53 | L160: 0.43
A161: Soil invertebrates | B161: 0.26 | C161: 0.53 | D161: 0.54 | E161: 0.13 | F161: 0.54 | G161: 0.13 | H161: 0.13 | J161: 0.08 | L161: 0.08
A162: Sum | B162: =SUM(B150:B161) -> 1 | C162: 1 | D162: 1 | E162: 1 | F162: 1 | G162: 1 | H162: 1 | I162: 1 | J162: 1 | K162: 1 | L162: 1
A165: Field grown vegetables | B165: April | C165: May | D165: June | E165: May | F165: June | G165: July | H165: August | I165: May | J165: June | K165: July | L165: August | M165: Sept. | N165: May | O165: June | P165: July | Q165: August | R165: Sept. | S165: Oct.
A166: BBCH | B166: 0-9 | C166: 0-9 | D166: 0-9 | E166: 10-19 | F166: 10-19 | G166: 10-19 | H166: 10-19 | I166: 20-39 | J166: 20-39 | K166: 20-39 | L166: 20-39 | M166: 20-39 | N166: 40-49 | O166: 40-49 | P166: 40-49 | Q166: 40-49 | R166: 40-49 | S166: 40-49
A168: Grasses and cereal shoots | I168: 0.07 | J168: 0.04 | K168: 0.05 | L168: 0.05 | M168: 0.04 | N168: 0.07 | O168: 0.04 | P168: 0.05 | Q168: 0.05 | R168: 0.04 | S168: 0.11
A169: Non-grass herbs, leafy crops | E169: 0.22 | F169: 0.12 | G169: 0.15 | H169: 0.15 | I169: 0.15 | J169: 0.08 | K169: 0.1 | L169: 0.1 | M169: 0.09 | N169: 0.15 | O169: 0.08 | P169: 0.1 | Q169: 0.1 | R169: 0.09 | S169: 0.23
A170: Cereal grain/ear on plant
A171: Large seeds/cereal grain on ground | B171: 0.05 | C171: 0.05 | D171: 0.05 | E171: 0.05 | F171: 0.05 | G171: 0.05 | H171: 0.05 | I171: 0.05 | J171: 0.05 | K171: 0.05 | L171: 0.05 | M171: 0.05 | N171: 0.05 | O171: 0.05 | P171: 0.05 | Q171: 0.05 | R171: 0.05 | S171: 0.05
A172: Small seeds (weed seeds) | B172: 0.03 | C172: 0.08 | D172: 0.28 | E172: 0.05 | F172: 0.35 | G172: 0.29 | H172: 0.3 | I172: 0.05 | J172: 0.35 | K172: 0.29 | L172: 0.3 | M172: 0.28 | N172: 0.05 | O172: 0.35 | P172: 0.29 | Q172: 0.3 | R172: 0.28 | S172: 0.2
A173: Large fruit (pome)
A174: Small fruit (plum, cherry)
A175: Berries
A176: Foliar arthropods
A177: Ground-dwelling arthropods | B177: 0.58 | C177: 0.17 | D177: 0.49 | E177: 0.14 | F177: 0.35 | G177: 0.51 | H177: 0.42 | I177: 0.14 | J177: 0.35 | K177: 0.51 | L177: 0.42 | M177: 0.36
A178: Ground-dwelling arthropods with intercept. | N178: 0.14 | O178: 0.35 | P178: 0.51 | Q178: 0.42 | R178: 0.36 | S178: 0.41
A179: Soil invertebrates | B179: 0.34 | C179: 0.7 | D179: 0.18 | E179: 0.54 | F179: 0.13 | H179: 0.08 | I179: 0.54 | J179: 0.13 | L179: 0.08 | M179: 0.18 | N179: 0.54 | O179: 0.13 | Q179: 0.08 | R179: 0.18
A180: Sum | B180: =SUM(B168:B179) -> 1 | C180: 1 | D180: 1 | E180: 1 | F180: 1 | G180: 1 | H180: 1 | I180: 1 | J180: 1 | K180: 1 | L180: 1 | M180: 1 | N180: 1 | O180: 1 | P180: 1 | Q180: 1 | R180: 1 | S180: 1
A183: Strawberries | B183: April | C183: May | D183: June | E183: July | F183: August | G183: Sept. | H183: Oct. | I183: April | J183: May | K183: June | L183: June | M183: July | N183: July | O183: August | P183: Sept. | Q183: Oct. | R183: March | S183: April | T183: May | U183: June | V183: July | W183: August | X183: Sept. | Y183: Oct. | Z183: Nov.
A184: Stage / BBCH | B184: Planting | I184: Pre-flowering (20-59) | L184: Flowering and fruit | N184: Post-harvest | R184: Termination
L185: development (60-89)
A186: Grasses and cereal shoots | B186: 0.08 | C186: 0.07 | D186: 0.04 | E186: 0.05 | F186: 0.05 | G186: 0.04 | H186: 0.11 | I186: 0.08 | J186: 0.07 | K186: 0.04 | L186: 0.04 | M186: 0.05 | N186: 0.05 | O186: 0.05 | P186: 0.04 | Q186: 0.11 | R186: 0.05 | S186: 0.05 | T186: 0.04 | U186: 0.02 | V186: 0.03 | W186: 0.03 | X186: 0.02 | Y186: 0.07 | Z186: 0.16
A187: Non-grass herbs, leafy crops | B187: 0.16 | C187: 0.15 | D187: 0.08 | E187: 0.1 | F187: 0.1 | G187: 0.09 | H187: 0.23 | I187: 0.16 | J187: 0.15 | K187: 0.08 | L187: 0.08 | M187: 0.1 | N187: 0.1 | O187: 0.1 | P187: 0.09 | Q187: 0.23 | R187: 0.11 | S187: 0.09 | T187: 0.08 | U187: 0.05 | V187: 0.05 | W187: 0.05 | X187: 0.05 | Y187: 0.14 | Z187: 0.32
A188: Cereal grain/ear on plant
A189: Large seeds/cereal grain on ground | B189: 0.05 | C189: 0.05 | D189: 0.05 | E189: 0.05 | F189: 0.05 | G189: 0.05 | H189: 0.05 | I189: 0.05 | J189: 0.05 | K189: 0.05 | L189: 0.05 | M189: 0.05 | N189: 0.05 | O189: 0.05 | P189: 0.05 | Q189: 0.05 | R189: 0.05 | S189: 0.05 | T189: 0.05 | U189: 0.05 | V189: 0.05 | W189: 0.05 | X189: 0.05 | Y189: 0.05 | Z189: 0.05
A190: Small seeds (weed seeds) | C190: 0.05 | D190: 0.35 | E190: 0.29 | F190: 0.3 | G190: 0.28 | H190: 0.2 | J190: 0.05 | K190: 0.35 | L190: 0.35 | M190: 0.29 | N190: 0.29 | O190: 0.3 | P190: 0.28 | Q190: 0.2 | R190: 0.1 | T190: 0.06 | U190: 0.37 | V190: 0.32 | W190: 0.33 | X190: 0.3 | Y190: 0.25 | Z190: 0.19
A191: Large fruit (pome)
A192: Small fruit (plum, cherry)
A193: Berries
A194: Foliar arthropods
A195: Ground-dwelling arthropods | B195: 0.45 | C195: 0.14 | D195: 0.35 | E195: 0.51 | F195: 0.42 | G195: 0.36 | H195: 0.41
A196: Ground-dwelling arthropods with intercept. | I196: 0.45 | J196: 0.14 | K196: 0.35 | L196: 0.35 | M196: 0.51 | N196: 0.51 | O196: 0.42 | P196: 0.36 | Q196: 0.41 | R196: 0.36 | S196: 0.51 | T196: 0.16 | U196: 0.37 | V196: 0.55 | W196: 0.46 | X196: 0.38 | Y196: 0.49 | Z196: 0.21
A197: Soil invertebrates | B197: 0.26 | C197: 0.54 | D197: 0.13 | F197: 0.08 | G197: 0.18 | I197: 0.26 | J197: 0.54 | K197: 0.13 | L197: 0.13 | O197: 0.08 | P197: 0.18 | R197: 0.33 | S197: 0.3 | T197: 0.61 | U197: 0.14 | W197: 0.08 | X197: 0.2 | Z197: 0.07
A198: Sum | B198: =SUM(B186:B197) -> 1 | C198: 1 | D198: 1 | E198: 1 | F198: 1 | G198: 1 | H198: 1 | I198: 1 | J198: 1 | K198: 1 | L198: 1 | M198: 1 | N198: 1 | O198: 1 | P198: 1 | Q198: 1 | R198: 1 | S198: 1 | T198: 1 | U198: 1 | V198: 1 | W198: 1 | X198: 1 | Y198: 1 | Z198: 1
A201: Grassland in short rotation | B201: March | C201: April | D201: May | E201: June | F201: July | G201: August | H201: Sept. | I201: Oct. | J201: Nov. | K201: March | L201: April | M201: May | N201: June | O201: July | P201: August | Q201: Sept. | R201: Oct. | S201: Nov. | T201: March | U201: April | V201: May | W201: June | X201: July | Y201: August | Z201: Sept. | AA201: Oct. | AB201: Nov.
A202: Stage | B202: Short grass | K202: Medium & long grass | T202: Termination
A204: Grasses and cereal shoots | B204: 0.22 | C204: 0.19 | D204: 0.17 | E204: 0.1 | F204: 0.12 | G204: 0.12 | H204: 0.1 | I204: 0.27 | J204: 0.5 | K204: 0.18 | L204: 0.16 | M204: 0.15 | N204: 0.07 | O204: 0.09 | P204: 0.09 | Q204: 0.09 | R204: 0.23 | S204: 0.42 | T204: 0.11 | U204: 0.09 | V204: 0.08 | W204: 0.05 | X204: 0.05 | Y204: 0.05 | Z204: 0.05 | AA204: 0.14 | AB204: 0.32
A205: Non-grass herbs, leafy crops | B205: 0.05 | C205: 0.05 | D205: 0.04 | E205: 0.02 | F205: 0.03 | G205: 0.03 | H205: 0.03 | I205: 0.07 | J205: 0.13 | K205: 0.09 | L205: 0.08 | M205: 0.07 | N205: 0.04 | O205: 0.04 | P205: 0.04 | Q205: 0.04 | R205: 0.11 | S205: 0.21 | T205: 0.05 | U205: 0.05 | V205: 0.04 | W205: 0.02 | X205: 0.03 | Y205: 0.03 | Z205: 0.02 | AA205: 0.07 | AB205: 0.16
A206: Cereal grain/ear on plant
A207: Large seeds/cereal grain on ground | B207: 0.05 | C207: 0.05 | D207: 0.05 | E207: 0.05 | F207: 0.05 | G207: 0.05 | H207: 0.05 | I207: 0.05 | J207: 0.05 | K207: 0.05 | L207: 0.05 | M207: 0.05 | N207: 0.05 | O207: 0.05 | P207: 0.05 | Q207: 0.05 | R207: 0.05 | S207: 0.05 | T207: 0.05 | U207: 0.05 | V207: 0.05 | W207: 0.05 | X207: 0.05 | Y207: 0.05 | Z207: 0.05 | AA207: 0.05 | AB207: 0.05
A208: Small seeds (weed seeds) | B208: 0.09 | D208: 0.06 | E208: 0.35 | F208: 0.29 | G208: 0.3 | H208: 0.28 | I208: 0.2 | J208: 0.13 | K208: 0.09 | M208: 0.05 | N208: 0.44 | O208: 0.38 | P208: 0.39 | Q208: 0.28 | R208: 0.2 | S208: 0.13 | T208: 0.1 | V208: 0.06 | W208: 0.37 | X208: 0.32 | Y208: 0.33 | Z208: 0.3 | AA208: 0.25 | AB208: 0.19
A209: Large fruit (pome)
A210: Small fruit (plum, cherry)
A211: Berries
A212: Foliar arthropods
A213: Ground-dwelling arthropods | B213: 0.31 | C213: 0.45 | D213: 0.14 | E213: 0.35 | F213: 0.51 | G213: 0.42 | H213: 0.36 | I213: 0.41 | J213: 0.14
A214: Ground-dwelling arthropods with intercept. | K214: 0.31 | L214: 0.45 | M214: 0.14 | N214: 0.29 | O214: 0.44 | P214: 0.36 | Q214: 0.36 | R214: 0.41 | S214: 0.14 | T214: 0.36 | U214: 0.51 | V214: 0.16 | W214: 0.37 | X214: 0.55 | Y214: 0.46 | Z214: 0.38 | AA214: 0.49 | AB214: 0.21
A215: Soil invertebrates | B215: 0.28 | C215: 0.26 | D215: 0.54 | E215: 0.13 | G215: 0.08 | H215: 0.18 | J215: 0.05 | K215: 0.28 | L215: 0.26 | M215: 0.54 | N215: 0.11 | P215: 0.07 | Q215: 0.18 | S215: 0.05 | T215: 0.33 | U215: 0.3 | V215: 0.61 | W215: 0.14 | Y215: 0.08 | Z215: 0.2 | AB215: 0.07
A216: Sum | B216: =SUM(B204:B215) -> 1 | C216: 1 | D216: 1 | E216: 1 | F216: 1 | G216: 1 | H216: 1 | I216: 1 | J216: 1 | K216: 1 | L216: 1 | M216: 1 | N216: 1 | O216: 1 | P216: 1 | Q216: 1 | R216: 1 | S216: 1 | T216: 1 | U216: 1 | V216: 1 | W216: 1 | X216: 1 | Y216: 1 | Z216: 1 | AA216: 1 | AB216: 1
A219: Permanent & perennial grass | B219: March | C219: Aug. | D219: March | E219: June | F219: Sept. | G219: March | H219: June | I219: Sept. | J219: March | K219: June | L219: Sept.
B220: -May | C220: -Oct. | D220: -May | E220: -Aug. | F220: -Nov. | G220: -May | H220: -Aug. | I220: -Nov. | J220: -May | K220: -Aug. | L220: -Nov.
A221: Stage | B221: Sowing & | D221: Short grass | G221: Medium & long grass | J221: Termination
B222: pre-emergence
A223: Grasses and cereal shoots | D223: 0.72 | E223: 0.46 | F223: 0.51 | G223: 0.72 | H223: 0.46 | I223: 0.51 | J223: 0.59 | K223: 0.31 | L223: 0.36
A224: Non-grass herbs, leafy crops | D224: 0.05 | E224: 0.08 | F224: 0.08 | G224: 0.05 | H224: 0.08 | I224: 0.08 | J224: 0.04 | K224: 0.06 | L224: 0.06
A225: Cereal grain/ear on plant
A226: Large seeds/cereal grain on ground
A227: Small seeds (weed seeds) | B227: 0.42 | C227: 0.42 | E227: 0.43 | F227: 0.35 | H227: 0.43 | I227: 0.35 | K227: 0.59 | L227: 0.5
A228: Large fruit (pome)
A229: Small fruit (plum, cherry)
... 54 more rows
